Cogmind - Beta 11 X11 @@@ ROGUE MODE // 2022.03.06 @ 21:04:23 Player: youngster Result: Destroyed by as-50789 with Assembled Focal Cannon Performance ------------- Evolutions (3) 1500 Regions Visited (14) 2800 Robots Destroyed (157) 785 Value Destroyed (4627) 4627 Prototype IDs (31) 620 Alien Tech Used (1) 200 Bonus (1397) 1397 TOTAL SCORE: 11929 Bonus ------- High Alert Combat Kills 224 Follower Combat Kills 70 Met Imprinter 300 Destroyed Z-Imprinter 1000 Friendly Fire -197 Cogmind --------- Core Integrity 0/700 Matter 200/300 Energy 700/700 System Corruption 0% Temperature Cool (6) Movement Treading (250) Ox1 Location -7/Deep Caves Parts ------- > --- POWER (1) -------- Zionite Light DM Reactor > --- PROPULSION (4) --- Armored Treads Armored Treads Armored Treads > --- UTILITY (6) ------ Huge Storage Unit Zionite Biocell Improved Signal Interpreter Advanced Targeting Computer Tactical Coordination Suite > --- WEAPON (3) ------- Advanced Assault Cannon Heavy Flak Cannon > --- INVENTORY (25) --- Improved Deuterium Engine Light Treads Advanced Treads Improved Cooling System High-capacity Matter Pod (47) Machine Analyzer Improved Sensor Array Makeshift Salvage Targeting Computer Weapon Cycler Zionite Weapon Casing Zionite Weapon Casing Medium Reactive Plating Shield Generator Authchip [Device] Improved Trap Extractor (2/6 Dirty Bomb) Improved Field Recycling Unit (0) Hacking Drone Bay (1/1) Light EM Pulse Cannon Battle Rifle Heavy Battle Rifle Datajack Tearclaws CR-A16's Pointy Stick Peak State ------------ > --- POWER ------------ Improved Deuterium Engine > --- PROPULSION ------- Light Treads Light Treads Armored Treads Advanced Treads > --- UTILITY ---------- Huge Storage Unit Improved Sensor Array Improved Signal Interpreter Tactical Coordination Suite Improved Light Armor Plating Hacking Drone Bay > --- WEAPON ----------- Flak Gun Mini Assault Cannon CR-A16's Pointy Stick > --- INVENTORY -------- Light Treads Wheel Thermal Generator Improved Heat Sink High-capacity Matter Pod Machine Analyzer Makeshift Salvage Targeting Computer Advanced Targeting Computer Weapon Cycler Weapon Cycler Medium Reactive Plating Reflective Plating Shield Generator Authchip [Device] Improved Trap Extractor Improved Field Recycling Unit Light EM Pulse Cannon Plasma Cannon Flak Gun Advanced Assault Cannon Heavy Flak Cannon Heavy Missile Launcher Datajack Tearclaws [Rating: 57] Favorites ----------- Power Nuclear Core Engine Light Ion Engine Power Core Nuclear Core Reactor Zionite Light DM Reactor Propulsion Light Treads Treads Light Treads Leg Aluminum Leg Wheel Wheel Utility Huge Storage Unit Device Improved Sensor Array Storage Huge Storage Unit Processor Improved Signal Interpreter Protection Improved Light Armor Plating Weapon Heavy Assault Rifle Energy Gun EM Pulse Gun Energy Cannon Light EM Pulse Cannon Ballistic Gun Heavy Assault Rifle Ballistic Cannon Mini Assault Cannon Launcher Grenade Launcher Impact Weapon Powered Hammer Slashing Weapon Katana Piercing Weapon CR-A16's Pointy Stick Special Melee Weapon Datajack Build | -11 -10 -10 -9 -9 -9 -8 -8 -7 -7 -7 -7 -7 -7 -7 ------- Run | Scr Mat Min Mat Min Exi Min Mat Fac Was Fac Low Low Zio Dee Slots Evolved 6 | . . . 2 . . . 2 2 . . . . . . Power . | . . . . . . . . . . . . . . . Propulsion 2 | . . . 1 . . . 1 . . . . . . . Utility 3 | . . . . . . . 1 2 . . . . . . Weapon 1 | . . . 1 . . . . . . . . . . . Parts Attached 295 | 6 15 10 58 10 2 16 36 7 6 49 29 17 12 22 Power 12 | 1 . 1 1 1 . . 4 1 . 1 . 1 . 1 Engine 7 | 1 . 1 1 1 . . 2 . . . . 1 . . Core 4 | . . . . . . . 2 1 . 1 . . . . Reactor 1 | . . . . . . . . . . . . . . 1 Propulsion 81 | 2 3 1 25 3 . 4 12 1 2 10 5 3 4 6 Treads 47 | 2 2 . 17 2 . 2 3 1 . 7 3 2 1 5 Leg 2 | . . . . . . . 2 . . . . . . . Wheel 32 | . 1 1 8 1 . 2 7 . 2 3 2 1 3 1 Hover . | . . . . . . . . . . . . . . . Flight . | . . . . . . . . . . . . . . . Utility 110 | 1 6 4 13 3 . 7 7 3 3 23 17 9 4 10 Device 58 | . 3 3 6 2 . 3 3 1 1 11 11 7 2 5 Storage 5 | 1 1 . 1 . . 1 . . . . . . . 1 Processor 3 | . . . . . . . . 1 . 1 . . . 1 Hackware . | . . . . . . . . . . . . . . . Protection 44 | . 2 1 6 1 . 3 4 1 2 11 6 2 2 3 Artifact . | . . . . . . . . . . . . . . . Weapon 92 | 2 6 4 19 3 2 5 13 2 1 15 7 4 4 5 Energy Gun 2 | 1 . . 1 . . . . . . . . . . . Energy Cannon 6 | . . . 1 2 . . 2 . . . 1 . . . Ballistic Gun 39 | 1 4 3 9 . 1 2 8 1 . 6 1 . 2 1 Ballistic Cannon 11 | . . . 2 . . . . . . 2 1 2 1 3 Launcher 23 | . 2 . 6 1 . 3 3 . 1 2 3 1 . 1 Special Weapon . | . . . . . . . . . . . . . . . Impact Weapon 6 | . . . . . . . . . . 4 1 1 . . Slashing Weapon 2 | . . . . . . . . 1 . 1 . . . . Piercing Weapon 1 | . . . . . . . . . . . . . 1 . Special Melee Weapon 2 | . . 1 . . 1 . . . . . . . . . Unidentified Prototypes 9 | . 1 . . . . . . 1 . 2 . 1 1 3 Parts Lost 36 | . . 1 . 2 . 1 9 . 2 6 4 1 . 10 Power 7 | . . 1 . 1 . . 3 . 1 . . 1 . . Propulsion 11 | . . . . 1 . 1 2 . . 1 2 . . 4 Utility 10 | . . . . . . . 2 . 1 4 . . . 3 Weapon 8 | . . . . . . . 2 . . 1 2 . . 3 Highest Loss Streak 5 | . . 1 . 1 . 1 3 . 2 3 3 1 . 5 To Critical Strikes . | . . . . . . . . . . . . . . . Average Slot Usage (%) 96 | . 93 99 100 95 100 99 90 100 86 91 96 97 96 93 Engine 7 | . 14 13 11 6 11 11 3 . . . . 5 7 3 Core 1 | . . . . . . . 4 7 5 6 7 1 . . Treads 22 | . 26 26 25 27 33 23 17 12 . 14 19 25 20 18 Wheel 6 | . 1 1 7 5 . 8 11 15 27 8 6 4 7 8 Device 10 | . 6 13 2 8 11 10 6 12 12 11 16 9 12 14 Storage 9 | . 14 14 11 11 11 11 9 7 7 7 7 7 7 10 Processor 3 | . . . . . . . . 7 7 9 7 7 7 11 Protection 6 | . 1 . 8 2 . . 6 9 4 7 6 11 13 4 Ballistic Gun 14 | . 24 22 28 11 12 17 20 17 14 11 4 7 6 2 Ballistic Cannon 6 | . . . 2 11 11 11 2 . . 6 10 9 6 11 Launcher 1 | . 1 4 1 5 . 4 3 . 3 . . . . 1 Impact Weapon 1 | . . . . . . . . . . 1 5 4 1 . Naked Turns . | . . . . . . . . . . . . . . . Heaviest Build 123 | 13 32 32 63 63 54 98 103 105 103 122 123 122 118 123 Greatest Support 82 | 40 40 40 69 69 69 69 66 20 40 28 28 82 82 62 Greatest Overweight (x) 12 | . 1 1 3 3 . 9 10 5 2 9 11 12 4 4 Average Overweight (x) 2 | . . . 1 . . 5 5 5 2 3 7 6 2 2 Largest Inventory Capacity 25 | 8 15 15 20 20 20 25 25 25 25 25 25 25 25 25 Average Capacity 21 | 6 14 15 15 20 20 24 25 25 25 25 25 25 25 25 Most Carried 25 | 3 15 15 17 20 20 21 25 25 25 25 25 25 25 25 Average Carried 19 | 2 11 14 15 18 20 20 20 23 24 23 23 24 24 23 Final Capacity 25 | 8 15 15 20 20 20 25 25 25 25 25 25 25 25 25 Final Carried 25 | 3 15 15 17 20 20 20 25 24 25 23 24 25 25 24 Class Distribution -------------------- 61% | Mutant 14% | Tank 11% | Gunner 6% | Scavenger-Mutant Dominant Class ---------------- Mutant | -10/Materials Mutant | -10/Mines Tank | -9/Materials Gunner | -9/Mines Mutant | -9/Exiles Gunner | -8/Mines Scavenger-Tank | -8/Materials Scavenger-Mutant | -7/Factory Scavenger-Mutant | -7/Waste Mutant | -7/Factory Mutant | -7/Lower Caves Mutant | -7/Lower Caves Mutant | -7/Zion Scavenger-Mutant | -7/Deep Caves Resources | -11 -10 -10 -9 -9 -9 -8 -8 -7 -7 -7 -7 -7 -7 -7 ----------- Run | Scr Mat Min Mat Min Exi Min Mat Fac Was Fac Low Low Zio Dee Matter Collected 6638 | 256 487 204 1326 312 20 219 1196 73 . 1146 695 402 70 232 Remotely 567 | . . . . . . . 355 . . 212 . . . . Salvage Created 5462 | . 492 145 1099 127 . 175 1534 73 . 1006 584 128 . 99 Parts 293 | . 33 7 74 6 . 22 81 2 . 41 14 3 . 10 Haulers Intercepted 7 | . . . 2 . . . 4 . . 1 . . . . Recyclers Shooed 6 | . . 1 . . . . 2 . . 3 . . . . Parts Field Recycled 34 | . . . . . . . . . . 6 11 1 . 16 Retrieved Matter 319 | . . . . . . . . . . 138 99 20 . 62 Parts Self-Destructed 16 | . . . . . . . . . . . 7 9 . . Prevented 2 | . . . . . . . . . . . 2 . . . Kills | -11 -10 -10 -9 -9 -9 -8 -8 -7 -7 -7 -7 -7 -7 -7 ------- Run | Scr Mat Min Mat Min Exi Min Mat Fac Was Fac Low Low Zio Dee Combat Hostiles Destroyed 130 | . 12 6 25 12 . 14 25 1 . 19 10 4 . 2 Melee 3 | . . . . . . . . . . 3 . . . . Guns 69 | . 9 3 22 2 . 4 20 1 . 5 3 . . . Cannons 18 | . . . . 3 . 1 2 . . 6 5 1 . . AOE 37 | . 3 3 3 7 . 9 3 . . 2 2 3 . 2 Classes Destroyed 18 | . 6 . 3 2 . 1 1 . . 2 2 . . 1 Worker 9 | . 1 2 1 . . . 2 . . 3 . . . . Builder 4 | . . . . . . . 2 . . 2 . . . . Tunneler 2 | . . . . . . 1 . . . 1 . . . . Hauler 7 | . . . 2 . . . 4 . . 1 . . . . Recycler 4 | . 1 1 . . . . 1 . . 1 . . . . Operator 2 | . 1 . 1 . . . . . . . . . . . Watcher 5 | . 1 . 2 . . . 1 . . 1 . . . . Swarmer 39 | . 3 6 6 2 . 13 4 . . 5 . . . . Grunt 53 | . 9 . 11 2 . 1 16 . . 7 5 2 . . Brawler 4 | . . . . . . . . . . 3 . 1 . . Duelist 2 | . . . 2 . . . . . . . . . . . Sentry 15 | . . . 6 . . . 5 1 . 3 . . . . Demolisher 1 | . . . . 1 . . . . . . . . . . Programmer 2 | . . . . . . . . . . 1 . 1 . . Z-Light 2 | . . . . . . . . . . . . . . 2 Packrat 1 | . . . . . . . . . . . 1 . . . Samaritan 1 | . . . . . . . . . . . 1 . . . Assembled 7 | . . . . 7 . . . . . . . . . . Thug 4 | . . . 1 . . . . . . . 3 . . . Savage 1 | . . . . . . . . . . . 1 . . . Mutant 1 | . . . . . . . . . . . 1 . . . Best Kill Streak 15 | . 3 3 4 6 . 4 15 1 . 6 5 3 . 2 Combat Bots Only 11 | . 3 3 4 6 . 4 11 1 . 6 5 3 . 2 Max Kills in Single Turn 4 | . 2 2 3 1 . 2 4 1 . 2 1 2 . 2 Gunslinging 1 | . . . 1 . . . . . . . . . . . Exploded 3 | . 2 2 1 1 . 2 3 . . 1 1 2 . 2 Melee 1 | . . . . . . . . . . 1 . . . . Uniques/NPCs Destroyed 1 | . . . . . . . . . . . . . . 1 Z-Imprinter (-7/Deep Caves) Combat | -11 -10 -10 -9 -9 -9 -8 -8 -7 -7 -7 -7 -7 -7 -7 -------- Run | Scr Mat Min Mat Min Exi Min Mat Fac Was Fac Low Low Zio Dee Damage Taken 7970 | . 403 153 890 439 . 328 1431 156 140 1587 815 64 . 1564 Core 1315 | . 98 9 202 108 . 31 120 18 81 145 102 . . 401 Absorbed by Shields 24 | . . . . . . . . . . . . 24 . . Redirected to Shielding 65 | . 16 9 . . . . . . . 40 . . . . Regen/Repaired (Parts) 196 | . 97 . 99 . . . . . . . . . . . Core Remaining (%) 62 | 100 . 57 . . . 14 78 . . . . . . . Volleys Fired 334 | . 43 14 66 22 . 19 82 4 1 46 21 10 . 6 Largest 3 | . 2 2 3 3 . 3 3 3 1 3 3 3 . 3 Hottest 152 | . 60 46 102 118 . 85 118 69 30 135 152 124 . 129 Shots Fired 758 | . 77 25 170 45 . 30 225 12 1 98 41 18 . 16 Gun 558 | . 71 23 153 12 . 11 210 12 . 50 7 4 . 5 Cannon 134 | . . . 5 22 . 7 12 . . 41 27 10 . 10 Launcher 66 | . 6 2 12 11 . 12 3 . 1 7 7 4 . 1 Special . | . . . . . . . . . . . . . . . Kinetic 665 | . 68 23 152 24 . 18 217 12 . 91 31 14 . 15 Thermal . | . . . . . . . . . . . . . . . Explosive 51 | . 6 2 11 11 . 10 2 . 1 . 3 4 . 1 Electromagnetic 42 | . 3 . 7 10 . 2 6 . . 7 7 . . . Robot Hit Streak 30 | . 10 8 18 9 . 2 30 4 . 14 5 5 . 3 Robot Miss Streak 6 | . 5 2 2 4 . 4 4 1 . 6 4 2 . 6 Penetration Max . | . . . . . . . . . . . . . . . Secondary Targets 10 | . 1 1 5 . . . 2 . . 1 . . . . Max Gunslinging Chain 1 | . 1 1 1 . . . 1 . . 1 . . . . Shots Hit Robots 500 | . 46 18 123 21 4 8 152 8 . 74 28 5 . 13 Core Hits 288 | . 28 8 48 23 . 19 61 4 . 52 23 8 . 14 Critical Kills 5 | . 1 . . . . 1 1 . . 1 1 . . . Critical Parts Destroyed 5 | . 1 . 1 . . . 1 . . 2 . . . . Critical Strikes 18 | . 2 . 1 . . 1 2 . . 6 6 . . . Destroy 6 | . 2 . 1 . . 1 2 . . . . . . . Blast 8 | . . . . . . . . . . 3 5 . . . Smash 4 | . . . . . . . . . . 3 1 . . . Melee Attacks 31 | . . . . . 4 . . 2 . 11 4 2 8 . Impact 17 | . . . . . . . . . . 10 4 2 1 . Slashing 3 | . . . . . . . . 2 . 1 . . . . Piercing 7 | . . . . . . . . . . . . . 7 . Sneak Attacks 12 | . . . . . 4 . . . . 6 2 . . . Combat Hostiles . | . . . . . . . . . . . . . . . Follow-up Attacks . | . . . . . . . . . . . . . . . Damage Inflicted 12909 | . 646 547 2194 741 . 707 2880 109 . 2745 1413 517 . 410 Guns 6097 | . 509 270 1870 108 . 85 2307 109 . 678 48 44 . 69 Cannons 1916 | . . . 25 257 . 19 148 . . 669 493 91 . 214 Explosions 3756 | . 130 228 293 374 . 603 425 . . 734 460 382 . 127 Melee 1064 | . . . . . . . . . . 652 412 . . . Ramming 76 | . 7 49 6 2 . . . . . 12 . . . . Kinetic 7686 | . 497 270 1834 218 . 104 2390 109 . 1347 499 135 . 283 Thermal 383 | . . . . 20 . . 175 . . 188 . . . . Explosive 2403 | . 130 228 276 354 . 501 186 . . . 219 382 . 127 Electromagnetic 1297 | . 12 . 78 147 . 102 129 . . 546 283 . . . Impact 1064 | . . . . . . . . . . 652 412 . . . Slashing . | . . . . . . . . . . . . . . . Piercing . | . . . . . . . . . . . . . . . Highest Corruption 18 | . . . . . . . . . 12 14 18 18 18 . Average Corruption 14 | . . . . . . . . . 8 11 15 18 18 . Corruption Purged 7 | . . . . . . . . . . 6 1 . . . Corruption Blocked 4 | . . . . . . . . . . 4 . . . . Effects 208 | . . . . . . . . . 7 63 69 66 3 . Message Errors 52 | . . . . . . . . . 1 22 14 15 . . Matter Fused 49 | . . . . . . . . . 3 14 14 17 1 . Heat Flow Errors 21 | . . . . . . . . . . 6 8 7 . . Energy Discharges 25 | . . . . . . . . . . 7 8 9 1 . Parts Rejected 5 | . . . . . . . . . 1 . 3 1 . . Data Loss (minor) 31 | . . . . . . . . . . 10 10 11 . . Data Loss (major) 5 | . . . . . . . . . 1 . 2 1 1 . Misfires 12 | . . . . . . . . . . 3 5 4 . . Alerts 5 | . . . . . . . . . . . 4 1 . . Misdirections 1 | . . . . . . . . . 1 . . . . . Weapon Failures 2 | . . . . . . . . . . 1 1 . . . Overload Shots . | . . . . . . . . . . . . . . . Overflow Damage 929 | . . 62 34 3 . 13 128 . . 352 332 . . 5 Projectiles 22 | . . . . . . . . . . . 17 . . 5 Explosions 245 | . . 62 34 3 . 13 128 . . 5 . . . . Melee 662 | . . . . . . . . . . 347 315 . . . Knockbacks 14 | . 1 2 . 1 . . . . . 7 3 . . . Impact 6 | . 1 2 . . . . . . . 3 . . . . Kinetic 7 | . . . . 1 . . . . . 3 3 . . . Secondary 1 | . . . . . . . . . . 1 . . . . Self-Inflicted Damage 464 | . . 19 35 54 . 58 88 . 16 178 16 . . . Shots 19 | . . 1 3 2 . 3 1 . 1 7 1 . . . Rammed 13 | . 2 5 3 1 . . . . . 2 . . . . Targets Rammed 17 | . 3 6 3 1 . . . . . 4 . . . . Kicked . | . . . . . . . . . . . . . . . Crushed 4 | . 1 1 . . . . . . . 2 . . . . Highest Temperature 373 | . 29 . 134 292 . 90 315 . . 373 360 263 . 358 Average Temperature 93 | . 6 . 23 99 . 30 110 . . 132 134 81 . 149 Received Heat Transfer 2382 | . 210 . 279 87 . 9 819 . . 342 375 18 . 243 Effects 4 | . . . . . . . . . . 1 3 . . . Shutdowns 1 | . . . . . . . . . . 1 . . . . Energy Bleed 2 | . . . . . . . . . . . 2 . . . Matter Decay 1 | . . . . . . . . . . . 1 . . . Siege Activations . | . . . . . . . . . . . . . . . Robots Corrupted 3 | . . . . . . . . . . 3 . . . . Combat Hostiles 3 | . . . . . . . . . . 3 . . . . Parts Fried 12 | . . . . . . . . . . 9 3 . . . Impact Corruptions 24 | . . . . . . . . . . 9 15 . . . Robots Melted . | . . . . . . . . . . . . . . . Combat Hostiles . | . . . . . . . . . . . . . . . Parts Melted . | . . . . . . . . . . . . . . . Heat Transferred 350 | . . . . 50 . . 100 . . 200 . . . . Parts Sabotaged . | . . . . . . . . . . . . . . . Parts Stolen . | . . . . . . . . . . . . . . . Parts Stripped . | . . . . . . . . . . . . . . . Power Chain Reactions 4 | . . . . 1 . . . . . 3 . . . . Missiles Intercepted . | . . . . . . . . . . . . . . . Alert | -11 -10 -10 -9 -9 -9 -8 -8 -7 -7 -7 -7 -7 -7 -7 ------- Run | Scr Mat Min Mat Min Exi Min Mat Fac Was Fac Low Low Zio Dee Peak Influence 631 | . 244 118 579 251 . 207 631 298 124 548 . . . . Initial 242 | . . 5 3 225 . . 22 242 104 72 . . . . Average 146 | . 82 21 224 120 . 117 375 261 106 146 . . . . Maximum Alert Level 2 | . 1 . 2 1 . 1 2 1 . 2 . . . . Low Security (%) 74 | 100 91 100 58 68 . 99 28 . 100 75 . . . . Level 1 13 | . 8 . 12 31 . . 8 100 . 12 . . . . Level 2 12 | . . . 29 . . . 63 . . 12 . . . . Level 3 . | . . . . . . . . . . . . . . . Level 4 . | . . . . . . . . . . . . . . . Level 5 . | . . . . . . . . . . . . . . . High Security . | . . . . . . . . . . . . . . . Max Security . | . . . . . . . . . . . . . . . Squads Dispatched 18 | . 3 . 5 . . . 4 1 . 5 . . . . Investigation 10 | . 2 . 4 . . . 1 . . 3 . . . . Extermination 3 | . . . . . . . . 1 . 2 . . . . Reinforcement 5 | . 1 . 1 . . . 3 . . . . . . . Assault . | . . . . . . . . . . . . . . . Garrison . | . . . . . . . . . . . . . . . Intercept . | . . . . . . . . . . . . . . . Searches Triggered . | . . . . . . . . . . . . . . . Construction Impeded 1 | . . . . . . . 1 . . . . . . . Haulers Reinforced . | . . . . . . . . . . . . . . . Active Scanning Responses . | . . . . . . . . . . . . . . . Cargo Convoy Interrupts . | . . . . . . . . . . . . . . . Stealth | -11 -10 -10 -9 -9 -9 -8 -8 -7 -7 -7 -7 -7 -7 -7 --------- Run | Scr Mat Min Mat Min Exi Min Mat Fac Was Fac Low Low Zio Dee Distress Signals 9 | . 1 . 1 . . . 6 . . 1 . . . . Communications Jammed . | . . . . . . . . . . . . . . . Distress Signals . | . . . . . . . . . . . . . . . Times Spotted 196 | . 27 6 42 11 . 16 41 1 5 26 13 3 . 5 Peak Tracking Total 8 | . 3 3 6 4 . 4 8 1 5 4 6 3 . 3 Tactical Retreats 10 | . 3 . 2 1 . . . . 1 3 . . . . Traps | -11 -10 -10 -9 -9 -9 -8 -8 -7 -7 -7 -7 -7 -7 -7 ------- Run | Scr Mat Min Mat Min Exi Min Mat Fac Was Fac Low Low Zio Dee Traps Triggered 6 | . . . 2 . . . . 1 . 2 1 . . . Indirectly . | . . . . . . . . . . . . . . . Trap Hack Attempts 90 | . . 90 . . . . . . . . . . . . Triggered . | . . . . . . . . . . . . . . . Disarmed . | . . . . . . . . . . . . . . . Reprogrammed 5 | . . 5 . . . . . . . . . . . . Reused 4 | . . . 3 . . . . . . . 1 . . . Traps Extracted 6 | . . 3 1 . . . . . . . 2 . . . Installed 8 | . . . 4 . . . . . . . 4 . . . Triggered 4 | . . . 3 . . . . . . . 1 . . . Most Traps Carried 4 | . . 3 3 . . . . . . . 4 2 2 2 Machines | -11 -10 -10 -9 -9 -9 -8 -8 -7 -7 -7 -7 -7 -7 -7 ---------- Run | Scr Mat Min Mat Min Exi Min Mat Fac Was Fac Low Low Zio Dee Machines Disabled 20 | . 1 . 2 1 . 3 6 . . 4 . 1 . 2 Max in Single Turn 3 | . 1 . 1 1 . 1 3 . . 3 . 1 . . Machines Sabotaged . | . . . . . . . . . . . . . . . Garrisons Compromised . | . . . . . . . . . . . . . . . Overloaded Fab Kills . | . . . . . . . . . . . . . . . Hacking | -11 -10 -10 -9 -9 -9 -8 -8 -7 -7 -7 -7 -7 -7 -7 --------- Run | Scr Mat Min Mat Min Exi Min Mat Fac Was Fac Low Low Zio Dee Machines Accessed 40 | . 9 1 15 1 1 . 6 3 . 3 1 . . . Terminals 26 | . 6 . 10 1 . . 4 3 . 2 . . . . Fabricators 1 | . . . . . . . . . . 1 . . . . Repair Stations 3 | . 1 . 2 . . . . . . . . . . . Recycling Units 5 | . 2 . 2 . . . 1 . . . . . . . Scanalyzers 1 | . . . 1 . . . . . . . . . . . Garrison Access 1 | . . . . . . . 1 . . . . . . . Total Hacks 124 | . 25 1 52 2 1 . 18 10 . 8 7 . . . Successful 76 | . 17 1 35 2 1 . 9 3 . 1 7 . . . Failed 48 | . 8 . 17 . . . 9 7 . 7 . . . . Catastrophic 7 | . 1 . 1 . . . 3 . . 2 . . . . Database Lockouts . | . . . . . . . . . . . . . . . Manual 74 | . 16 . 36 1 . . 12 3 . 2 . . 4 . Terminals 94 | . 18 . 44 2 . . 14 10 . 6 . . . . Fabricators 2 | . . . . . . . . . . 2 . . . . Repair Stations 9 | . 5 . 4 . . . . . . . . . . . Recycling Units 5 | . 2 . 2 . . . 1 . . . . . . . Scanalyzers 2 | . . . 2 . . . . . . . . . . . Garrison Access 3 | . . . . . . . 3 . . . . . . . Terminal Hacks 32 | . 5 1 11 1 1 . 3 3 . . 7 . . . Record 8 | . . . . . 1 . . . . . 7 . . . Part Schematic 1 | . . . 1 . . . . . . . . . . . Prototype ID Bank 5 | . 1 . 2 . . . 1 1 . . . . . . Open Door 1 | . . 1 . . . . . . . . . . . . Open DSF 1 | . . . . . . . . 1 . . . . . . Branch Access Points 1 | . . . . . . . . 1 . . . . . . Alert Level 1 | . 1 . . . . . . . . . . . . . Unreport Threat 3 | . 1 . 1 . . . 1 . . . . . . . Locate Traps 6 | . 2 . 3 . . . 1 . . . . . . . Recall Investigation 1 | . . . 1 . . . . . . . . . . . Hauler Manifests 1 | . . . 1 . . . . . . . . . . . Registered Prototypes 1 | . . . 1 . . . . . . . . . . . Zone Layout 2 | . . . 1 1 . . . . . . . . . . Fabricator Hacks . | . . . . . . . . . . . . . . . Repair Station Hacks 8 | . 4 . 4 . . . . . . . . . . . Scan Component 4 | . 2 . 2 . . . . . . . . . . . Repair 4 | . 2 . 2 . . . . . . . . . . . Recycling Unit Hacks . | . . . . . . . . . . . . . . . Scanalyzer 2 | . . . 2 . . . . . . . . . . . Insert Component 1 | . . . 1 . . . . . . . . . . . Analyze 1 | . . . 1 . . . . . . . . . . . Garrison Access Hacks . | . . . . . . . . . . . . . . . Unauthorized Hacks 34 | . 8 . 18 1 . . 6 . . 1 . . . . Terminals 28 | . 6 . 16 1 . . 5 . . . . . . . Track 10 | . 2 . 6 . . . 2 . . . . . . . Botnet 14 | . 3 . 8 1 . . 2 . . . . . . . Operators 4 | . 1 . 2 . . . 1 . . . . . . . Fabricators 1 | . . . . . . . . . . 1 . . . . Recompile 1 | . . . . . . . . . . 1 . . . . Repair Stations . | . . . . . . . . . . . . . . . Recycling Units 5 | . 2 . 2 . . . 1 . . . . . . . Tunnel 5 | . 2 . 2 . . . 1 . . . . . . . Scanalyzers . | . . . . . . . . . . . . . . . Garrison Access . | . . . . . . . . . . . . . . . Data Cores Recovered 2 | . 1 . 1 . . . . . . . . . . . Used 2 | . 1 . 1 . . . . . . . . . . . Hacking Detections 23 | . 4 . 9 . . . 5 2 . 3 . . . . Full Trace Events 2 | . . . . . . . . . . 2 . . . . Feedback Events . | . . . . . . . . . . . . . . . Feedback Blocked . | . . . . . . . . . . . . . . . Robot Schematics Acquired 3 | . . . . . . . . . . . . . 3 . Robots Built . | . . . . . . . . . . . . . . . Authchips . | . . . . . . . . . . . . . . . Time . | . . . . . . . . . . . . . . . Total Robot Build Rating . | . . . . . . . . . . . . . . . Part Schematics Acquired 18 | . . . 2 . . . . . . . . . 16 . Parts Built . | . . . . . . . . . . . . . . . Authchips . | . . . . . . . . . . . . . . . Time . | . . . . . . . . . . . . . . . Total Part Build Rating . | . . . . . . . . . . . . . . . Parts Repaired 4 | . 2 . 2 . . . . . . . . . . . Time 110 | . 52 . 58 . . . . . . . . . . . Parts Recycled . | . . . . . . . . . . . . . . . Recycled Matter . | . . . . . . . . . . . . . . . Retrieved Matter . | . . . . . . . . . . . . . . . Retrieved Components . | . . . . . . . . . . . . . . . Parts Scanalyzed 1 | . . . 1 . . . . . . . . . . . Part Schematics Acquired 1 | . . . 1 . . . . . . . . . . . Parts Damaged 1 | . . . 1 . . . . . . . . . . . Bothacking | -11 -10 -10 -9 -9 -9 -8 -8 -7 -7 -7 -7 -7 -7 -7 ------------ Run | Scr Mat Min Mat Min Exi Min Mat Fac Was Fac Low Low Zio Dee Used RIF Installer . | . . . . . . . . . . . . . . . Robots Hacked 4 | . . . . . 4 . . . . . . . . . Non-combat 3 | . . . . . 3 . . . . . . . . . Combat 1 | . . . . . 1 . . . . . . . . . Robot Hacks Applied 4 | . . . . . 4 . . . . . . . . . parse_system 4 | . . . . . 4 . . . . . . . . . Relay Couplers Released . | . . . . . . . . . . . . . . . Fabnet Peak Effective % . | . . . . . . . . . . . . . . . Robots Rewired . | . . . . . . . . . . . . . . . Allies Hacked . | . . . . . . . . . . . . . . . Hacks Repelled . | . . . . . . . . . . . . . . . Allies | -11 -10 -10 -9 -9 -9 -8 -8 -7 -7 -7 -7 -7 -7 -7 -------- Run | Scr Mat Min Mat Min Exi Min Mat Fac Was Fac Low Low Zio Dee Total Allies 8 | . . . . 4 . . . . . . . . 4 . Largest Group 4 | . . . . 3 1 1 . . . . . . 4 4 Highest-Rated Group 129 | . . . . 40 16 16 . . . . . . 129 129 Highest-Rated Ally 39 | . . . . 31 16 16 . . . . . . 39 39 Total Orders . | . . . . . . . . . . . . . . . Ally Attacks 65 | . . . . 7 . 9 . . . . . . . 49 Total Damage 2212 | . . . . 69 . 96 . . . . . . . 2047 Kills 11 | . . . . 1 . 2 . . . . . . . 8 Allies Corrupted . | . . . . . . . . . . . . . . . Allies Melted . | . . . . . . . . . . . . . . . Intel | -11 -10 -10 -9 -9 -9 -8 -8 -7 -7 -7 -7 -7 -7 -7 ------- Run | Scr Mat Min Mat Min Exi Min Mat Fac Was Fac Low Low Zio Dee Robot Analysis Total . | . . . . . . . . . . . . . . . Derelict Logs Recovered 8 | . . 2 . 1 . . . . . . 2 1 2 . Drone Launches . | . . . . . . . . . . . . . . . Drone Recoveries . | . . . . . . . . . . . . . . . Exploration | -11 -10 -10 -9 -9 -9 -8 -8 -7 -7 -7 -7 -7 -7 -7 ------------- Run | Scr Mat Min Mat Min Exi Min Mat Fac Was Fac Low Low Zio Dee Turns Passed 18569 | 82 1304 1777 2571 1909 528 1252 758 314 193 1712 1699 1455 2104 911 Spaces Moved 8998 | 47 691 645 1525 714 325 641 231 182 158 956 790 571 1112 410 Core 4 | 4 . . . . . . . . . . . . . . Treads 3483 | 43 619 526 404 595 325 118 2 . . . . 241 376 234 Legs . | . . . . . . . . . . . . . . . Wheels 5511 | . 72 119 1121 119 . 523 229 182 158 956 790 330 736 176 Hover . | . . . . . . . . . . . . . . . Flight . | . . . . . . . . . . . . . . . Fastest Speed 50 | 50 115 115 130 145 160 160 125 155 110 140 145 238 150 150 Average Speed 167 | 150 155 151 141 157 160 182 168 155 110 146 197 244 179 200 Slowest Speed 260 | 160 160 160 240 160 160 240 240 155 110 215 245 260 238 250 Overloaded Moves . | . . . . . . . . . . . . . . . Propulsion Burnouts . | . . . . . . . . . . . . . . . Robots Hopped . | . . . . . . . . . . . . . . . Cave-ins Triggered . | . . . . . . . . . . . . . . . Exploration Rate (%) 68 | 4 98 98 94 96 81 97 33 6 79 27 94 72 86 63 Regions Visited 14 Branch Regions 8 Pre-discovered Areas 9 | . 2 . 2 1 1 . 1 . . . . . 2 . Known Exits Taken 5 | . . 1 . . . . . . . 1 1 1 1 . Unknown Exits Taken 7 | 1 1 . 1 1 1 1 1 . . . . . . . Scrap Searched 13 | . . 2 . 3 . 1 . . . . 3 2 2 . Spaces Dug 103 | . . 21 16 21 . 17 6 1 5 11 1 3 1 . Terrain Destroyed 467 | . 21 21 66 68 . 68 17 1 5 69 42 80 1 8 Melee 6 | . . . . . . . . 1 . 2 1 1 1 . Projectile 17 | . . . . 3 . 4 . . . 4 3 3 . . AOE 444 | . 21 21 66 65 . 64 17 . 5 63 38 76 . 8 Terrain Rammed . | . . . . . . . . . . . . . . . Walls Destroyed . | . . . . . . . . . . . . . . . Machines Disabled . | . . . . . . . . . . . . . . . Actions | -11 -10 -10 -9 -9 -9 -8 -8 -7 -7 -7 -7 -7 -7 -7 --------- Run | Scr Mat Min Mat Min Exi Min Mat Fac Was Fac Low Low Zio Dee Total 11726 | 55 849 1411 1800 1459 330 691 422 204 173 1165 879 607 1200 481 Wait 1767 | . 76 642 104 705 . 13 49 . 6 59 19 1 56 37 Move 8985 | 46 690 644 1524 713 324 640 230 182 157 955 789 570 1111 410 Hop . | . . . . . . . . . . . . . . . Pick Up 100 | 3 16 3 15 6 . 2 13 4 2 22 7 3 3 1 Fast Attach 49 | 6 3 . 3 1 . . 6 2 1 8 4 3 8 4 Attach 49 | . 2 1 3 1 . 1 11 2 . 12 8 1 . 7 Detach 13 | . 1 . . . . . 5 . . 1 3 . . 3 Swap 198 | . 10 9 52 8 2 15 19 3 5 29 17 14 4 11 Drop 85 | . 5 2 26 2 . 1 7 5 1 18 3 3 10 2 Fire 334 | . 43 14 66 22 . 19 82 4 1 46 21 10 . 6 Melee 31 | . . . . . 4 . . 2 . 11 4 2 8 . Ram . | . . . . . . . . . . . . . . . Kick . | . . . . . . . . . . . . . . . Crush 17 | . 3 6 3 1 . . . . . 4 . . . . Escape Stasis . | . . . . . . . . . . . . . . . Rewire . | . . . . . . . . . . . . . . . Trap 98 | . . 90 4 . . . . . . . 4 . . . Miscellaneous . | . . . . . . . . . . . . . . . Route ------- -11/Scrapyard -10/Materials (discovered 4 exits: *Mat x3 / *Min) -10/Mines (discovered 2 exits: *Mat x2) -9/Materials (discovered 4 exits: *Mat x3 / *Min) -9/Mines (discovered 4 exits: *Mat x2 / *Exi / *Zio) -9/Exiles -8/Mines (discovered 2 exits: *Mat x2) -8/Materials (discovered 2 exits: *Fac / Sto) -7/Factory (discovered 3 exits: *Fac / Low x2) -7/Waste -7/Factory (discovered 2 exits: *Fac / *Low) -7/Lower Caves -7/Lower Caves (discovered 2 exits: *Fac / *Zio) -7/Zion (discovered 2 exits: *Dee / [*Pro]) -7/Deep Caves History --------- Turn | Location | Event 41 | -11/Scrapyard | Discovered new exit (range 16) 83 | -11/Scrapyard | Entered Materials 314 | -10/Materials | Build established: Mutant 326 | -10/Materials | Discovered new exit (range 7) 600 | -10/Materials | Discovered new exit (range 3) 808 | -10/Materials | Discovered new exit (range 3) 957 | -10/Materials | Repaired Lgt. Treads 984 | -10/Materials | Repaired Lgt. Treads? 1248 | -10/Materials | Discovered new exit (range 10) 1387 | -10/Materials | Entered Mines 1975 | -10/Mines | Identified exit to Materials 2287 | -10/Mines | Discovered exit to Materials (range 10) 2798 | -10/Mines | Met a Derelict who couldn't figure out how to use a Trap Extractor 3164 | -10/Mines | Entered Materials 3164 | -9/Materials | Evolved 2 slots: Propulsion x1, Weapon x1 3463 | -9/Materials | Build established: Gunner 3497 | -9/Materials | Discovered new exit (range 4) 3677 | -9/Materials | Discovered new exit (range 9) 3774 | -9/Materials | Build established: Tank 4258 | -9/Materials | Discovered new exit (range 8) 4581 | -9/Materials | Discovered new exit (range 5) 4764 | -9/Materials | Repaired Lgt. Treads 5390 | -9/Materials | Repaired Hvy. Assault Rifle? 5693 | -9/Materials | Core integrity fell below 50% 5735 | -9/Materials | Entered Mines 5738 | -9/Mines | Received a Mining Laser from a helpful Derelict 5789 | -9/Mines | Met a Derelict bent on vengeance 5936 | -9/Mines | Build established: Mutant 6213 | -9/Mines | Assembled infested the area 6829 | -9/Mines | Deemed a non-threat by the Exiles lab entrance 6829 | -9/Mines | Discovered new exit (range 5) 6855 | -9/Mines | Discovered new exit (range 15) 6856 | -9/Mines | A Derelict revealed a hidden shortcut to a safe place 6940 | -9/Mines | Assisted by bots powering up and referring to "LRC-V3" 7004 | -9/Mines | Build established: Gunner 7013 | -9/Mines | Received a Rocket Launcher from a helpful Derelict 7151 | -9/Mines | Learned location of Zion (-7) 7386 | -9/Mines | Discovered new exit (range 7) 7644 | -9/Mines | Entered Exiles 7644 | -9/Exiles | Accompanied by 1 ally 7686 | -9/Exiles | Met 8R-AWN 7715 | -9/Exiles | Met EX-HEX 7772 | -9/Exiles | Met EX-BIN 7830 | -9/Exiles | Met EX-DEC 7903 | -9/Exiles | Visited The Gauntlet 7931 | -9/Exiles | Build established: Mutant 8154 | -9/Exiles | Discovered new exit (range 12) 8172 | -9/Exiles | Entered Mines 8172 | -8/Mines | Accompanied by 1 ally 8195 | -8/Mines | Core integrity fell below 20% 8260 | -8/Mines | Discovered new exit (range 16) 8428 | -8/Mines | Build established: Gunner 8572 | -8/Mines | Discovered new exit (range 15) 9250 | -8/Mines | Build established: Mutant 9424 | -8/Mines | Entered Materials 9424 | -8/Materials | Evolved 2 slots: Propulsion x1, Utility x1 9425 | -8/Materials | Identified exit to Storage 9711 | -8/Materials | Destroyed 11 combat bots 9729 | -8/Materials | Lost 3 parts (1p1n1u) 9858 | -8/Materials | Destroyed 7 combat bots 10114 | -8/Materials | Discovered new exit (range 10) 10182 | -8/Materials | Entered Factory 10182 | -7/Factory | Evolved 2 slots: Utility x2 10223 | -7/Factory | Identified exit to DSF 10271 | -7/Factory | Identified exit to Lower Caves 10343 | -7/Factory | Discovered new exit (range 7) 10352 | -7/Factory | Identified exit to Factory 10496 | -7/Factory | Sucked down chute 10496 | -7/Factory | Entered Waste 10511 | -7/Waste | EMP discharged 10546 | -7/Waste | Spotted C-40 Crusher 10549 | -7/Waste | Spotted C-40 Crusher 10560 | -7/Waste | Spotted C-40 Crusher 10611 | -7/Waste | EMP discharged 10611 | -7/Waste | System corruption reached 10% 10617 | -7/Waste | Spotted C-40 Crusher 10623 | -7/Waste | Crushed by Compactor (1 part destroyed, 2 dropped) 10624 | -7/Waste | Spotted C-40 Crusher 10634 | -7/Waste | Crushed by Compactor (1 part destroyed, 2 dropped) 10677 | -7/Waste | Discovered new exit (range 12) 10688 | -7/Waste | Identified exit to Factory 10689 | -7/Waste | Entered Factory 10831 | -7/Factory | Build established: Scavenger-Mutant 12222 | -7/Factory | Lost 3 parts (1n2u) 12263 | -7/Factory | Discovered exit to Factory (range 6) 12305 | -7/Factory | Discovered exit to Lower Caves (range 8) 12401 | -7/Factory | Entered Lower Caves 12473 | -7/Lower Caves | Build established: Mutant 12475 | -7/Lower Caves | Learned Extension trap positions 12475 | -7/Lower Caves | Learned Armory emergency access door positions 12475 | -7/Lower Caves | Learned Research terminal intel 12475 | -7/Lower Caves | Learned Research garrison access intel 12724 | -7/Lower Caves | Attacked by a faux Warlord 13121 | -7/Lower Caves | Lost 3 parts (1n2w) 13303 | -7/Lower Caves | Learned Factory trap positions 13365 | -7/Lower Caves | Identified exit to Lower Caves 14100 | -7/Lower Caves | Entered another Lower Caves area 14191 | -7/Lower Caves | Discovered exit to Factory (range 8) 15051 | -7/Lower Caves | Learned Factory emergency access door positions 15182 | -7/Lower Caves | Found Alien Artifact 15182 | -7/Lower Caves | Identified Core Expander 15182 | -7/Lower Caves | Installed Core Expander, added new Utility slot 15505 | -7/Lower Caves | Discovered new exit (range 5) 15512 | -7/Lower Caves | Identified exit to Zion 15555 | -7/Lower Caves | Entered Zion 15635 | -7/Zion | System corruption cleaned by Quarantine Array 15714 | -7/Zion | Gained Derelict followers 15934 | -7/Zion | Found Unknown Piercing Weapon 15934 | -7/Zion | Identified CR-A16's Pointy Stick 16032 | -7/Zion | Discovered new exit (range 12) 16244 | -7/Zion | Given A8's code to call for help 16273 | -7/Zion | Given the Hacking Drone Bay 16276 | -7/Zion | Found Prototype Device 16276 | -7/Zion | Identified Hacking Drone Bay 16498 | -7/Zion | Learned Factory terminal intel 16569 | -7/Zion | Learned Factory recycling unit intel 16597 | -7/Zion | Gained Derelict followers 16668 | -7/Zion | Learned location of Warlord (-4) 16893 | -7/Zion | Acquired unknown access codes intercepted by a Zionite 16942 | -7/Zion | Identified exit to Deep Caves 17571 | -7/Zion | Opened final containment barrier to the Deep Caves 17595 | -7/Zion | Saw the warning signs outside the Deep Caves entrance 17659 | -7/Zion | Entered Deep Caves 17659 | -7/Deep Caves | Accompanied by 4 allies 17907 | -7/Deep Caves | Z-Facility disabled 17930 | -7/Deep Caves | Attacked by Z-Imprinter 17943 | -7/Deep Caves | Core integrity fell below 50% 17949 | -7/Deep Caves | Allies destroyed Z-Imprinter 17984 | -7/Deep Caves | Lost 5 parts (2n2u1w) 18066 | -7/Deep Caves | Found Prototype Protection 18066 | -7/Deep Caves | Identified Zio. Weapon Casing 18079 | -7/Deep Caves | Found Zio. Weapon Casing 18241 | -7/Deep Caves | Lost 3 parts (1n2w) 18367 | -7/Deep Caves | Build established: Scavenger-Mutant 18552 | -7/Deep Caves | Spotted as-50789 18560 | -7/Deep Caves | Core integrity fell below 20% 18570 | -7/Deep Caves | Destroyed by as-50789 with Assembled Focal Cannon Last Messages --------------- 18181_ Acquired 10 matter. 18184_ Imp. Field Recycling Unit collects Hover Unit, recycling 5 matter... 18189_ Imp. Field Recycling Unit collects Unknown Hackware, recycling 1 matter... 18198_ Imp. Field Recycling Unit collects Hover Unit, recycling 6 matter... 18200_ Acquired 12 matter. 18203_ Imp. Field Recycling Unit collects Lgt. Ion Engine, recycling 1 matter... 18210_ Z-Power explodes. 18210_ TE-DYG(g) destroyed. 18210_ Lgt. Treads destroyed. 18210_ Hvy. Missile Launcher destroyed. 18210_ Mni. Assault Cannon destroyed. 18210_ 31-L56(g) destroyed. 18210_ 1T-SOW(o) destroyed. 18554_ as-50789: "DSI9AT1D G8OHIBQ29FWG 26R186 QD12WHW8W33 TDK1 81FTS" 18559_ Reflective Plating destroyed. 18567_ Wheel destroyed. Map ----- +----------------------------------------------------+ | ?????????????????????????????????????????????????? | | ???????????????? ???????????????????????????????? | | ?????????????? ???????????????????????????????? | | ??????????? ???????????????????????????????? | | ????????? = ??###??????????????????????????? | | ??????? ??# #??????????????????????????? | | ??????? ### #??????????????????????????? | | ?????? # ??????????????????????????? | | ?????? ##?????????????????????????? | | ????? ##???????????????##???????? | | ????? ???????????????## ##?????? | | ????? | #??????????????## ##????? | | ????# ##??????? ###### ##???? | | ????# b #??????? #???? | | ????# | #??????? ##??? | | ????# #??????? ## #??? | | ????# * #???????? #??? | | ?????" | * #?????????? #??? | | ?????" = #???????????# ##?? | | ?????" #???????????# #?? | | ?????" * ##??????????# #?? | | ?????" l = #??####???## #?? | | ????# h* = #?## ##?## #??? | | ????" g #?# ### ##?? | | ????? * M ### ##? | | ????? * @ ### ## | | ??????" ###?## | | ?????? ### ####????# | | ?????? ## ##?###???????## | | ??????? ## #?????????????#### | | ??????? #### #????????????????#### | | ???????? # # #??###???????????????????? | | ???????? #### ## ## ##????????????????????????? | | ????????? ##???# ?# ?###?????????????????????????? | | ???????????????##?# ?????????????????????????????? | | ???????????????????#?????????????????????????????? | | | | | | | | | | | | | | | | | | | | | | | | | | | | | +----------------------------------------------------+ Best States ------------- Heat Dissipation 61 Energy Generation 27 Energy Capacity 700 Matter Stores 300 Matter Capacity 300 Sight Range 16 Robot Scan Range 15 Terrain Scan Density 10 Corruption Block 7 Armor Coverage 375 Resistance: TH 15 Resistance: EM 15 Power Shielding 90 Weapon Shielding 33 Weapon Cycling 15 Evasion (%) 40 Targeting Accuracy 8 Recoil Reduction 4 Authchip Count 1 Trap Extractor Capacity 6 Item Schematics ----------------- Seismic Detector | -9/Materials | Scanalyzed Huge Storage Unit | -9/Materials | Hacked Hvy. Riot Gun | -7/Zion | Archive Angular Momentum Engine | -7/Zion | Archive Core Analyzer | -7/Zion | Archive EM Disruption Field | -7/Zion | Archive Flak Gun | -7/Zion | Archive System Guard | -7/Zion | Archive Greatsword | -7/Zion | Archive Mni. Drone Bay | -7/Zion | Archive KE Penetrator | -7/Zion | Archive Imp. EM Pulse Cannon | -7/Zion | Archive Lgt. Angular Momentum Engine | -7/Zion | Archive Imp. Melee Analysis Suite | -7/Zion | Archive Plasma Rifle | -7/Zion | Archive Weapon Cycler | -7/Zion | Archive Mak. Transmission Jammer | -7/Zion | Archive HERF Cannon | -7/Zion | Archive Robot Schematics ------------------ B-48 Gladiator | -7/Zion | Archive L-31 Rogue | -7/Zion | Archive A-02 Transporter | -7/Zion | Archive Fabricated ------------ Nothing Alien Tech Used ----------------- Core Expander Achievements -------------- None Challenges ------------ None Game ------ Seed AccelerationRemoteLance Manual? 0 Play Time 02:35:37 Cumulative 217.1 hours Start 2022.03.06 @ 12:39:11 End 2022.03.06 @ 21:04:23 Sessions 5 Manual Loads 0 Difficulty Rogue Special Mode None Game No. 109 Rogue 109 Adventurer 0 Explorer 0 Win Type - Total 3 Types 2/0/0/1/0/0/0/0/0 Lore% 81 Gallery% 86 Achievement% 66 Wizard Run 0 Options --------- ASCII 1 Keyboard 1 Movement Vi Keybinds 0 Fullscreen 2 Font 18/Cog Map View 76x50 Tactical HUD 1 Map Filters NONE Filters NONE Steam 0 RUN: c55c861a-06d9-4852-9c8b-332994f13ada